fUSD/lending_fUSD_20250617
["ID","MTS","AMOUNT","RATE_DAILY","PERIOD"]
[366218982,1750128641467,-490.0,0.00016598,2]
[366218983,1750128641476,-527.9,0.00016598,2]
[366218984,1750128641486,-864.15,0.00016598,2]
[366218985,1750128641496,-490.0,0.00016598,2]
[366218986,1750128641506,-490.0,0.00016598,2]
[366218987,1750128641516,-490.0,0.00016598,2]
[366218988,1750128641526,-536.73165733,0.00016598,2]
[366218989,1750128641535,-490.0,0.00016598,2]
[366218990,1750128641545,-490.0,0.00016598,2]
[366218991,1750128641554,-490.0,0.00016598,2]
[366218992,1750128641564,-1804.45,0.00016598,2]
[366218993,1750128641574,-1645.26,0.00016598,2]
[366218994,1750128641583,-490.0,0.00016598,2]
[366218995,1750128641594,-490.0,0.00016598,2]
[366218996,1750128641604,-490.0,0.00016598,2]
[366218997,1750128641616,-490.0,0.00016598,2]
[366218998,1750128641626,-651.19,0.00016598,2]
[366218999,1750128641636,-495.82830412,0.00016598,2]
[366219000,1750128641646,-192.60825966,0.00016598,2]
[366219001,1750128641655,-5002.67,0.00016598,2]
[366219002,1750128641665,-497.40586886,0.00016598,2]
[366219003,1750128641675,-490.0,0.00016598,2]
[366219004,1750128641685,-490.0,0.00016598,2]
[366219005,1750128641694,-490.0,0.00016598,2]
[366219006,1750128641704,-372.06396354,0.00016598,2]
[366219007,1750128641714,-490.0,0.00016598,2]
[366219008,1750128641723,-490.0,0.00016598,2]
[366219009,1750128641733,-559.88522417,0.00016598,2]
[366219010,1750128641742,-490.0,0.00016598,2]
[366219011,1750128641752,-2680.01,0.00016598,2]
[366219012,1750128641762,-715.38,0.00016598,2]
[366219013,1750128641771,-500.6837131,0.00016598,2]
[366219014,1750128641780,-500.0,0.00016598,2]
[366219015,1750128641789,-490.0,0.00016598,2]
[366219016,1750128641798,-490.0,0.00016598,2]
[366219017,1750128641807,-490.0,0.00016598,2]
[366219018,1750128641817,-490.0,0.00016598,2]
[366219019,1750128641827,-490.0,0.00016598,2]
[366219020,1750128641836,-490.0,0.00016598,2]
[366219021,1750128641845,-490.0,0.00016598,2]
[366219022,1750128641854,-490.0,0.00016598,2]
[366219023,1750128641864,-490.0,0.00016598,2]
[366219024,1750128641875,-490.0,0.00016598,2]
[366219025,1750128641884,-709.83,0.00016598,2]
[366219026,1750128641893,-490.0,0.00016598,2]
[366219027,1750128641902,-490.0,0.00016598,2]
[366219028,1750128641912,-490.0,0.00016598,2]
[366219029,1750128641922,-490.0,0.00016598,2]
[366219030,1750128641931,-490.0,0.00016598,2]
[366219031,1750128641941,-490.0,0.00016598,2]
[366219032,1750128641951,-490.0,0.00016598,2]
[366219033,1750128641960,-490.0,0.00016598,2]
[366219034,1750128641970,-490.0,0.00016598,2]
[366219035,1750128641980,-490.0,0.00016598,2]
[366219036,1750128642121,-490.0,0.00016598,2]
[366219037,1750128642140,-490.0,0.00016598,2]
[366219038,1750128642151,-831.93,0.00016598,2]
[366219039,1750128642161,-490.0,0.00016598,2]
[366219040,1750128642171,-490.0,0.00016598,2]
[366219041,1750128642181,-490.0,0.00016598,2]
[366219042,1750128642191,-1698.43,0.00016598,2]
[366219043,1750128642201,-490.0,0.00016598,2]
[366219044,1750128642211,-490.0,0.00016598,2]
[366219045,1750128642221,-490.0,0.00016598,2]
[366219046,1750128642231,-490.0,0.00016598,2]
[366219047,1750128642241,-490.0,0.00016598,2]
[366219048,1750128642250,-490.0,0.00016598,2]
[366219049,1750128642261,-490.0,0.00016598,2]
[366219050,1750128642271,-490.0,0.00016598,2]
[366219051,1750128642281,-490.0,0.00016598,2]
[366219052,1750128642290,-490.0,0.00016598,2]
[366219053,1750128642300,-490.0,0.00016598,2]
[366219054,1750128642310,-499.364693,0.00016598,2]
[366219055,1750128642319,-696.06,0.00016598,2]
[366219056,1750128642330,-753.02,0.00016598,2]
[366219057,1750128642339,-500.0,0.00016598,2]
[366219058,1750128642349,-490.0,0.00016598,2]
[366219059,1750128642359,-490.0,0.00016598,2]
[366219060,1750128642370,-490.0,0.00016598,2]
[366219061,1750128642380,-490.0,0.00016598,2]
[366219062,1750128642389,-490.0,0.00016598,2]
[366219063,1750128642399,-788.67,0.00016598,2]
[366219064,1750128642410,-1210.83,0.00016598,2]
[366219065,1750128642420,-517.5160616,0.00016598,2]
[366219066,1750128642431,-490.0,0.00016598,2]
[366219067,1750128642445,-841.26,0.00016598,2]
[366219068,1750128642455,-490.0,0.00016598,2]
[366219069,1750128642464,-490.0,0.00016598,2]
[366219070,1750128642473,-492.96404145,0.00016598,2]
[366219071,1750128642485,-547.13981287,0.00016598,2]
[366219072,1750128642495,-755.73,0.00016598,2]
[366219073,1750128642505,-506.86009876,0.00016598,2]
[366219074,1750128642517,-2097.86,0.00016598,2]
[366219075,1750128642527,-490.0,0.00016598,2]
[366219076,1750128642537,-490.0,0.00016598,2]
[366219077,1750128642547,-490.0,0.00016598,2]
[366219078,1750128642558,-490.0,0.00016598,2]
[366219079,1750128642568,-1167.52,0.00016598,2]
[366219080,1750128642580,-490.0,0.00016598,2]
[366219081,1750128642589,-1719.04,0.00016598,2]
[366219082,1750128642599,-490.0,0.00016598,2]
[366219083,1750128642608,-490.0,0.00016598,2]
[366219084,1750128642618,-490.0,0.00016598,2]
[366219085,1750128642628,-739.05,0.00016598,2]
[366219086,1750128642638,-493.24239178,0.00016598,2]
[366219087,1750128642648,-4373.89,0.00016598,2]
[366219088,1750128642658,-490.0,0.00016598,2]
[366219089,1750128642668,-490.0,0.00016598,2]
[366219090,1750128642678,-1003.52,0.00016598,2]
[366219091,1750128642688,-490.0,0.00016598,2]
[366219092,1750128642698,-490.0,0.00016598,2]
[366219093,1750128642707,-645.08,0.00016598,2]
[366219094,1750128642717,-490.0,0.00016598,2]
[366219095,1750128642727,-227.78802583,0.00016598,2]
[366219096,1750128642737,-490.0,0.00016598,2]
[366219097,1750128642747,-887.68,0.00016598,2]
[366219098,1750128642758,-1285.11,0.00016598,2]
[366219099,1750128642767,-490.0,0.00016598,2]
[366219100,1750128642778,-490.0,0.00016598,2]
[366219101,1750128642788,-490.0,0.00016598,2]
[366219102,1750128642799,-433.82826756,0.00016598,2]
[366219103,1750128642810,-490.0,0.00016598,2]
[366219104,1750128642822,-490.0,0.00016598,2]
[366219105,1750128642834,-490.0,0.00016598,2]
[366219106,1750128642844,-490.0,0.00016598,2]
[366219107,1750128642854,-379.34819903,0.00016598,2]
[366219109,1750128642864,-490.0,0.00016598,2]
[366219110,1750128642874,-490.0,0.00016598,2]
[366219111,1750128642884,-524.86,0.00016598,2]
[366219112,1750128642894,-490.0,0.00016598,2]
[366219113,1750128642904,-490.0,0.00016598,2]
[366219114,1750128642914,-490.0,0.00016598,2]
[366219115,1750128642924,-490.0,0.00016598,2]
[366219116,1750128642934,-490.0,0.00016598,2]
[366219117,1750128642944,-492.10592039,0.00016598,2]
[366219118,1750128642954,-490.0,0.00016598,2]
[366219120,1750128642964,-490.0,0.00016598,2]
[366219121,1750128642974,-490.0,0.00016598,2]
[366219122,1750128642984,-1726.48,0.00016598,2]
[366219123,1750128642994,-490.0,0.00016598,2]
[366219124,1750128643004,-490.0,0.00016598,2]
[366219125,1750128643014,-490.0,0.00016598,2]
[366219126,1750128643025,-628.32799394,0.00016598,2]
[366219127,1750128643035,-490.0,0.00016598,2]
[366219128,1750128643045,-497.29578485,0.00016598,2]
[366219129,1750128643055,-494.25961668,0.00016598,2]
[366219130,1750128643065,-490.0,0.00016598,2]
[366219131,1750128643075,-490.0,0.00016598,2]
[366219132,1750128643085,-490.0,0.00016598,2]
[366219133,1750128643095,-493.4853568,0.00016598,2]
[366219134,1750128643105,-490.0,0.00016598,2]
[366219135,1750128643115,-490.0,0.00016598,2]
[366219136,1750128643125,-623.72,0.00016598,2]
[366219137,1750128643135,-500.0322743,0.00016598,2]
[366219138,1750128643145,-742.0,0.00016598,2]
[366219139,1750128643156,-989.99,0.00016598,2]
[366219140,1750128643165,-490.0,0.00016598,2]
[366219141,1750128643175,-490.0,0.00016598,2]
[366219142,1750128643185,-490.0,0.00016598,2]
[366219143,1750128643195,-188.26287599,0.00016598,2]
[366219144,1750128643205,-490.0,0.00016598,2]
[366219145,1750128643215,-490.0,0.00016598,2]
[366219146,1750128643225,-897.14,0.00016598,2]
[366219147,1750128643235,-490.0,0.00016598,2]
[366219148,1750128643244,-490.0,0.00016598,2]
[366219149,1750128643254,-493.15104841,0.00016598,2]
[366219150,1750128643263,-490.0,0.00016598,2]
[366219151,1750128643273,-485.58498864,0.00016598,2]
[366219152,1750128643282,-490.0,0.00016598,2]
[366219153,1750128643292,-490.0,0.00016598,2]
[366219154,1750128643302,-490.0,0.00016598,2]
[366219155,1750128643311,-490.0,0.00016598,2]
[366219156,1750128643321,-490.0,0.00016598,2]
[366219157,1750128643331,-490.0,0.00016598,2]
[366219158,1750128643340,-490.0,0.00016598,2]
[366219159,1750128643350,-546.08,0.00016598,2]
[366219160,1750128643359,-503.13899013,0.00016598,2]
[366219161,1750128643369,-490.0,0.00016598,2]
[366219162,1750128643379,-490.0,0.00016598,2]
[366219163,1750128643389,-543.7,0.00016598,2]
[366219164,1750128643398,-490.0,0.00016598,2]
[366219165,1750128643408,-490.0,0.00016598,2]
[366219166,1750128643418,-490.0,0.00016598,2]
[366219168,1750128643427,-393.65551273,0.00016598,2]
[366219170,1750128643441,-567.71,0.00016598,2]
[366219172,1750128643450,-499.72698949,0.00016598,2]
[366219174,1750128643460,-491.3799459,0.00016598,2]
[366219176,1750128643470,-490.0,0.00016598,2]
[366219179,1750128643482,-490.0,0.00016598,2]
[366219182,1750128643492,-490.0,0.00016598,2]
[366219185,1750128643501,-490.0,0.00016598,2]
[366219188,1750128643511,-490.0,0.00016598,2]
[366219191,1750128643521,-492.53812577,0.00016598,2]
[366219193,1750128643531,-490.0,0.00016598,2]
[366219195,1750128643541,-490.0,0.00016598,2]
[366219196,1750128643550,-314.1692376,0.00016598,2]
[366219197,1750128643560,-490.0,0.00016598,2]
[366219198,1750128643570,-490.0,0.00016598,2]
[366219199,1750128643579,-490.0,0.00016598,2]
[366219200,1750128643589,-490.0,0.00016598,2]
[366219201,1750128643599,-490.0,0.00016598,2]
[366219202,1750128643609,-6660.4,0.00016598,2]
[366219203,1750128643619,-491.17734536,0.00016599,2]
[366219204,1750128643629,-491.67350484,0.00016599,2]
[366219206,1750128643640,-491.29829085,0.00016599,2]
[366219208,1750128643649,-490.0,0.00016599,2]
[366219210,1750128643659,-491.36113836,0.00016599,2]
[366219211,1750128643669,-492.80919449,0.00016599,2]
[366219213,1750128643679,-490.61261551,0.00016599,2]
[366219215,1750128643689,-490.0,0.00016599,2]
[366219217,1750128643700,-490.0,0.00016599,2]
[366219219,1750128643709,-490.79671387,0.00016599,2]
[366219220,1750128643719,-490.60007123,0.00016599,2]
[366219222,1750128643729,-490.0,0.00016599,2]
[366219224,1750128643738,-490.0,0.00016599,2]
[366219226,1750128643748,-491.69080664,0.00016599,2]
[366219228,1750128643759,-491.31946396,0.00016599,2]
[366219230,1750128643768,-491.64049577,0.00016599,2]
[366219232,1750128643778,-490.82192507,0.00016599,2]
[366219234,1750128643788,-490.62795057,0.00016599,2]
[366219236,1750128643798,-491.3427641,0.00016599,2]
[366219238,1750128643808,-490.92727656,0.00016599,2]
[366219240,1750128643818,-490.72061903,0.00016599,2]
[366219242,1750128643828,-490.63555703,0.00016599,2]
[366219244,1750128643839,-490.54848877,0.00016599,2]
[366219246,1750128643849,-491.21767566,0.00016599,2]
[366219248,1750128643859,-491.14132389,0.00016599,2]
[366219251,1750128643874,-490.92884141,0.00016599,2]
[366219252,1750128643884,-491.03864715,0.00016599,2]
[366219255,1750128643895,-490.70093975,0.00016599,2]
[366219257,1750128643905,-490.0,0.00016599,2]
[366219259,1750128643914,-496.10104014,0.00016599,2]
[366219261,1750128643924,-490.0,0.00016599,2]
[366219262,1750128643935,-490.0,0.00016599,2]
[366219264,1750128643945,-490.0,0.00016599,2]
[366219266,1750128643955,-490.0,0.00016599,2]
[366219268,1750128643966,-527.22,0.00016599,2]
[366219271,1750128643977,-490.0,0.00016599,2]
[366219273,1750128643987,-490.0,0.00016599,2]
[366219275,1750128643997,-490.0,0.00016599,2]
[366219277,1750128644007,-493.29986696,0.00016599,2]
[366219279,1750128644017,-490.0,0.00016599,2]
[366219281,1750128644027,-494.12283417,0.00016599,2]
[366219283,1750128644037,-490.0,0.00016599,2]
[366219285,1750128644047,-490.0,0.00016599,2]
[366219287,1750128644057,-491.85904247,0.00016599,2]
[366219289,1750128644067,-490.0,0.00016599,2]
[366219291,1750128644077,-490.0,0.00016599,2]
[366219293,1750128644086,-490.0,0.00016599,2]
[366219295,1750128644096,-224.61938559,0.00016599,2]
[366219297,1750128644105,-490.0,0.00016599,2]
[366219299,1750128644116,-490.0,0.00016599,2]
[366219301,1750128644126,-490.0,0.00016599,2]
[366219303,1750128644135,-594.23,0.00016599,2]
[366219304,1750128644144,-490.0,0.00016599,2]
[366219306,1750128644155,-490.0,0.00016599,2]
[366219308,1750128644165,-625.74,0.00016599,2]
[366219309,1750128644175,-490.0,0.00016599,2]
[366219310,1750128644185,-481.11184683,0.00016599,2]
[366219311,1750128644195,-490.0,0.00016599,2]
[366219312,1750128644205,-437.628111,0.00016599,2]
[366219313,1750128644215,-490.0,0.00016599,2]
[366219314,1750128644225,-490.0,0.00016599,2]
[366219315,1750128644236,-443.09886098,0.00016599,2]
[366219316,1750128644246,-490.0,0.00016599,2]
[366219317,1750128644255,-490.0,0.00016599,2]
[366219318,1750128644265,-490.0,0.00016599,2]
[366219319,1750128644274,-490.0,0.00016599,2]
[366219320,1750128644284,-490.0,0.00016599,2]
[366219321,1750128644294,-490.0,0.00016599,2]
[366219322,1750128644304,-490.0,0.00016599,2]
[366219323,1750128644314,-490.0,0.00016599,2]
[366219324,1750128644324,-600.44,0.00016599,2]
[366219325,1750128644334,-490.0,0.00016599,2]
[366219326,1750128644344,-352.11258745,0.00016599,2]
[366219327,1750128644354,-490.0,0.00016599,2]
[366219328,1750128644364,-490.0,0.00016599,2]
[366219329,1750128644375,-490.0,0.00016599,2]
[366219330,1750128644385,-490.0,0.00016599,2]
[366219331,1750128644395,-490.0,0.00016599,2]
[366219332,1750128644404,-490.0,0.00016599,2]
[366219333,1750128644414,-490.0,0.00016599,2]
[366219334,1750128644424,-473.45636805,0.00016599,2]
[366219335,1750128644436,-490.0,0.00016599,2]
[366219336,1750128644447,-490.0,0.00016599,2]
[366219337,1750128644457,-490.0,0.00016599,2]
[366219338,1750128644467,-490.0,0.00016599,2]
[366219339,1750128644477,-490.0,0.00016599,2]
[366219340,1750128644791,-490.0,0.00016599,2]
[366219341,1750128644803,-490.0,0.00016599,2]
[366219342,1750128644813,-490.0,0.00016599,2]
[366219343,1750128644823,-490.0,0.00016599,2]
[366219344,1750128644833,-490.0,0.00016599,2]
[366219345,1750128644843,-490.0,0.00016599,2]
[366219346,1750128644854,-492.62588615,0.00016599,2]
[366219347,1750128644865,-490.0,0.00016599,2]
[366219348,1750128644876,-355.53103468,0.00016599,2]
[366219349,1750128644887,-158.56222556,0.00016599,2]
[366219350,1750128644897,-490.0,0.00016599,2]
[366219351,1750128644907,-490.0,0.00016599,2]
[366219352,1750128644917,-490.0,0.00016599,2]
[366219353,1750128644928,-490.0,0.00016599,2]
[366219354,1750128644938,-491.05078058,0.00016599,2]
[366219355,1750128644948,-490.0,0.00016599,2]
[366219356,1750128644958,-490.0,0.00016599,2]
[366219357,1750128644968,-509.2,0.00016599,2]
[366219358,1750128644978,-495.96,0.00016599,2]
[366219359,1750128644988,-490.0,0.00016599,2]
[366219360,1750128644998,-490.0,0.00016599,2]
[366219361,1750128645010,-490.0,0.00016599,2]
[366219362,1750128645020,-490.0,0.00016599,2]
[366219363,1750128645030,-490.0,0.00016599,2]
[366219364,1750128645039,-490.0,0.00016599,2]
[366219365,1750128645050,-490.0,0.00016599,2]
[366219366,1750128645059,-490.0,0.00016599,2]
[366219367,1750128645069,-490.0,0.00016599,2]
[366219368,1750128645079,-490.0,0.00016599,2]
[366219369,1750128645089,-490.0,0.00016599,2]
[366219370,1750128645099,-490.0,0.00016599,2]
[366219371,1750128645110,-490.0,0.00016599,2]
[366219372,1750128645120,-490.0,0.00016599,2]
[366219373,1750128645130,-490.0,0.00016599,2]
[366219374,1750128645140,-490.0,0.00016599,2]
[366219375,1750128645150,-490.0,0.00016599,2]
[366219376,1750128645160,-490.0,0.00016599,2]
[366219377,1750128645169,-490.0,0.00016599,2]
[366219378,1750128645179,-490.0,0.00016599,2]
[366219379,1750128645189,-506.81474367,0.00016599,2]
[366219380,1750128645199,-490.0,0.00016599,2]
[366219381,1750128645209,-490.0,0.00016599,2]
[366219382,1750128645219,-490.0,0.00016599,2]
[366219383,1750128645228,-610.74685975,0.00016599,2]
[366219384,1750128645238,-490.0,0.00016599,2]
[366219385,1750128645248,-494.77695771,0.00016599,2]
[366219386,1750128645259,-490.0,0.00016599,2]
[366219387,1750128645268,-490.0,0.00016599,2]
[366219388,1750128645278,-289.6,0.00016599,2]
[366219389,1750128645288,-490.0,0.00016599,2]
[366219390,1750128645297,-490.0,0.00016599,2]
[366219391,1750128645308,-496.34079028,0.00016599,2]
[366219392,1750128645318,-490.0,0.00016599,2]
[366219393,1750128645328,-490.0,0.00016599,2]
[366219394,1750128645338,-492.55303041,0.00016599,2]
[366219395,1750128645349,-490.0,0.00016599,2]
[366219396,1750128645359,-270.29,0.00016599,2]
[366219397,1750128645370,-494.72742288,0.00016599,2]
[366219398,1750128645381,-490.0,0.00016599,2]
[366219399,1750128645391,-495.49146972,0.00016599,2]
[366219400,1750128645401,-489.28299066,0.00016599,2]
[366219401,1750128645412,-493.91982566,0.00016599,2]
[366219402,1750128645424,-498.20140037,0.00016599,2]
[366219403,1750128645438,-490.0,0.00016599,2]
[366219404,1750128645448,-492.95812419,0.00016599,2]
[366219405,1750128645457,-483.84,0.00016599,2]
[366219406,1750128645467,-490.0,0.00016599,2]
[366219407,1750128645477,-490.0,0.00016599,2]
[366219408,1750128645487,-493.9582306,0.00016599,2]
[366219409,1750128645497,-491.16824971,0.00016599,2]
[366219410,1750128645507,-490.0,0.00016599,2]
[366219411,1750128645518,-191.54602075,0.00016599,2]
[366219412,1750128645528,-490.0,0.00016599,2]
[366219413,1750128645538,-490.0,0.00016599,2]
[366219414,1750128645548,-490.0,0.00016599,2]
[366219415,1750128645558,-490.0,0.00016599,2]
[366219416,1750128645568,-490.0,0.00016599,2]
[366219417,1750128645578,-490.0,0.00016599,2]
[366219418,1750128645587,-565.69791545,0.00016599,2]
[366219419,1750128645597,-490.0,0.00016599,2]
[366219420,1750128645608,-490.0,0.00016599,2]
[366219421,1750128645619,-490.0,0.00016599,2]
[366219422,1750128645629,-490.0,0.00016599,2]
[366219423,1750128645639,-198.32,0.00016599,2]
[366219424,1750128645649,-490.0,0.00016599,2]
[366219425,1750128645660,-490.0,0.00016599,2]
[366219426,1750128645670,-490.0,0.00016599,2]
[366219427,1750128645680,-490.0,0.00016599,2]
[366219428,1750128645690,-490.0,0.00016599,2]
[366219429,1750128645701,-455.81605267,0.00016599,2]
[366219430,1750128645711,-490.0,0.00016599,2]
[366219431,1750128645722,-490.0,0.00016599,2]
[366219432,1750128645732,-568.92964561,0.00016599,2]
[366219433,1750128645743,-382.07363152,0.00016599,2]
[366219434,1750128645753,-538.4994439,0.00016599,2]
[366219435,1750128645764,-490.0,0.00016599,2]
[366219436,1750128645774,-494.59439692,0.00016599,2]
[366219437,1750128645785,-584.42,0.00016599,2]
[366219438,1750128645795,-503.8290197,0.00016599,2]
[366219439,1750128645806,-490.0,0.00016599,2]
[366219440,1750128645816,-490.0,0.00016599,2]
[366219441,1750128645826,-490.0,0.00016599,2]
[366219442,1750128645836,-490.0,0.00016599,2]
[366219443,1750128645847,-490.0,0.00016599,2]
[366219444,1750128645858,-491.26443737,0.00016599,2]
[366219445,1750128645869,-490.0,0.00016599,2]
[366219446,1750128645879,-490.45763258,0.00016599,2]
[366219447,1750128645889,-492.44731623,0.00016599,2]
[366219448,1750128645900,-490.0,0.00016599,2]
[366219449,1750128645911,-490.0,0.00016599,2]
[366219450,1750128645922,-490.53069095,0.00016599,2]
[366219451,1750128645932,-490.0,0.00016599,2]
[366219452,1750128645942,-285.55165397,0.00016599,2]
[366219453,1750128645952,-490.0,0.00016599,2]
[366219454,1750128645962,-490.0,0.00016599,2]
[366219455,1750128645971,-490.39665004,0.00016599,2]
[366219458,1750128645982,-490.0,0.00016599,2]
[366219460,1750128645991,-492.08864348,0.00016599,2]
[366219462,1750128646001,-490.0,0.00016599,2]
[366219463,1750128646011,-163.65650306,0.00016599,2]
[366219464,1750128646021,-165.87673059,0.00016599,2]
[366219465,1750128646031,-490.0,0.00016599,2]
[366219466,1750128646043,-490.0,0.00016599,2]
[366219467,1750128646052,-490.0,0.00016599,2]
[366219468,1750128646062,-490.0,0.00016599,2]
[366219469,1750128646073,-490.0,0.00016599,2]
[366219470,1750128646083,-590.60743981,0.00016599,2]
[366219471,1750128646092,-493.19613398,0.00016599,2]
[366219472,1750128646102,-490.0,0.00016599,2]
[366219473,1750128646112,-490.0,0.00016599,2]
[366219474,1750128646122,-490.0,0.00016599,2]
[366219475,1750128646132,-550.57,0.00016599,2]
[366219476,1750128646141,-277.63365038,0.00016599,2]
[366219477,1750128646151,-490.0,0.00016599,2]
[366219478,1750128646161,-490.0,0.00016599,2]
[366219479,1750128646170,-503.71959356,0.00016599,2]
[366219480,1750128646180,-490.0,0.00016599,2]
[366219481,1750128646191,-490.0,0.00016599,2]
[366219482,1750128646200,-490.64246847,0.00016599,2]
[366219483,1750128646210,-490.0,0.00016599,2]
[366219484,1750128646220,-490.0,0.00016599,2]
[366219485,1750128646230,-348.30673886,0.00016599,2]
[366219486,1750128646239,-490.0,0.00016599,2]
[366219487,1750128646249,-490.0,0.00016599,2]
[366219488,1750128646260,-490.0,0.00016599,2]
[366219489,1750128646270,-491.31265319,0.00016599,2]
[366219490,1750128646279,-490.0,0.00016599,2]
[366219491,1750128646290,-490.0,0.00016599,2]
[366219492,1750128646300,-490.0,0.00016599,2]
[366219493,1750128646310,-491.60750921,0.00016599,2]
[366219494,1750128646320,-490.0,0.00016599,2]
[366219495,1750128646331,-490.0,0.00016599,2]
[366219496,1750128646341,-490.0,0.00016599,2]
[366219497,1750128646351,-490.0,0.00016599,2]
[366219498,1750128646361,-491.51744629,0.00016599,2]
[366219499,1750128646372,-490.0,0.00016599,2]
[366219500,1750128646383,-490.0,0.00016599,2]
[366219501,1750128646392,-490.0,0.00016599,2]
[366219502,1750128646403,-490.0,0.00016599,2]
[366219503,1750128646413,-490.0,0.00016599,2]
[366219504,1750128646423,-490.0,0.00016599,2]
[366219505,1750128646432,-490.39939724,0.00016599,2]
[366219506,1750128646445,-490.0,0.00016599,2]
[366219507,1750128646455,-490.37403708,0.00016599,2]
[366219508,1750128646465,-515.39798662,0.00016599,2]
[366219509,1750128646476,-490.4719861,0.00016599,2]
[366219510,1750128646487,-490.0,0.00016599,2]
[366219511,1750128646497,-490.0,0.00016599,2]
[366219512,1750128646507,-490.0,0.00016599,2]
[366219513,1750128646518,-490.0,0.00016599,2]
[366219514,1750128646528,-490.0,0.00016599,2]
[366219515,1750128646539,-490.0,0.00016599,2]
[366219516,1750128646549,-490.0,0.00016599,2]
[366219517,1750128646559,-490.0,0.00016599,2]
[366219518,1750128646569,-490.0,0.00016599,2]
[366219519,1750128646579,-490.0,0.00016599,2]
[366219520,1750128646589,-534.73059477,0.00016599,2]
[366219521,1750128646599,-490.0,0.00016599,2]
[366219522,1750128646609,-490.0,0.00016599,2]
[366219523,1750128646621,-490.0,0.00016599,2]
[366219524,1750128646631,-490.0,0.00016599,2]
[366219525,1750128646640,-490.0,0.00016599,2]
[366219526,1750128646650,-502.73634814,0.00016599,2]
[366219527,1750128646660,-490.0,0.00016599,2]
[366219528,1750128646671,-490.0,0.00016599,2]
[366219529,1750128646681,-490.26473817,0.00016599,2]
[366219530,1750128646691,-490.0,0.00016599,2]
[366219531,1750128646702,-500.0,0.00016599,2]
[366219532,1750128646711,-495.1134647,0.00016599,2]
[366219533,1750128646721,-494.38452209,0.00016599,2]
[366219534,1750128646731,-561.57302539,0.00016599,2]
[366219535,1750128646741,-490.0,0.00016599,2]
[366219536,1750128646751,-490.0,0.00016599,2]
[366219537,1750128646762,-490.0,0.00016599,2]
[366219538,1750128646772,-490.0,0.00016599,2]
[366219539,1750128646782,-496.33144419,0.00016599,2]
[366219540,1750128646792,-490.0,0.00016599,2]
[366219541,1750128646803,-502.00702192,0.00016599,2]
[366219542,1750128646813,-491.5037903,0.00016599,2]
[366219543,1750128646823,-490.0,0.00016599,2]
[366219544,1750128646834,-491.30927231,0.00016599,2]
[366219545,1750128646844,-490.0,0.00016599,2]
[366219546,1750128646854,-491.49537063,0.00016599,2]
[366219547,1750128646865,-492.2780866,0.00016599,2]
[366219548,1750128646875,-490.0,0.00016599,2]
[366219549,1750128646885,-601.65167631,0.00016599,2]
[366219550,1750128646895,-492.37228498,0.00016599,2]
[366219551,1750128646905,-490.0,0.00016599,2]
[366219552,1750128646915,-490.0,0.00016599,2]
[366219553,1750128646925,-500.0,0.00016599,2]
[366219554,1750128646935,-492.91565196,0.00016599,2]
[366219555,1750128646945,-490.0,0.00016599,2]